Cogmind - Beta 15 --- EXPLORER MODE // 2025.07.02 @ 18:42:57 Player: viper Result: Destroyed by 5A-459(R) with Subdweller Laser Performance ------------- Evolutions (0) 0 Regions Visited (2) 400 Robots Destroyed (45) 225 Value Destroyed (1292) 1292 Prototype IDs (3) 60 Alien Tech Used (0) 0 Bonus (-178) -178 TOTAL SCORE: 1799 Bonus ------- Friendly Fire -178 Cogmind --------- Core Integrity 0/250 Matter 296/300 Energy 170/170 System Corruption 1% Temperature Cool (6) Movement Walking (130) Location -10/Subcaves Parts ------- > --- POWER (1) -------- Makeshift Power Source > --- PROPULSION (2) --- Cargo Legs > --- UTILITY (3+1) ---- High-capacity Storage Unit Sensor Array (+) Targeting Computer Weapon Shielding > --- WEAPON (2) ------- Riot Gun Barrage Gun > --- INVENTORY (20) --- Ion Engine Light Ion Engine Subdweller Power Source Aluminum Leg Aluminum Leg Improved Heat Sink Medium Matter Pod (100) Medium Matter Pod (100) Medium Matter Pod (100) Scrap Shield Makeshift System Shield Riot Gun Assault Rifle Assault Rifle Heavy Assault Rifle Heavy Assault Rifle Subdweller Machine Gun Maul Peak State ------------ > --- POWER ------------ Makeshift Power Source > --- PROPULSION ------- Cargo Legs > --- UTILITY ---------- High-capacity Storage Unit Subdweller Optics Sensor Array Targeting Computer Weapon Shielding > --- WEAPON ----------- Riot Gun Barrage Gun > --- INVENTORY -------- Ion Engine Light Ion Engine Subdweller Power Source Aluminum Leg Aluminum Leg Improved Heat Sink Medium Matter Pod Medium Matter Pod Medium Matter Pod Scrap Shield Makeshift System Shield Assault Rifle Assault Rifle Heavy Assault Rifle Heavy Assault Rifle Subdweller Machine Gun Maul [Rating: 35] Favorites ----------- Power Makeshift Power Source Engine Makeshift Power Source Propulsion Aluminum Leg Leg Aluminum Leg Utility Targeting Computer Device Cooling System Storage High-capacity Storage Unit Processor Targeting Computer Protection Propulsion Shielding Weapon Heavy Assault Rifle Energy Gun Riot Gun Ballistic Gun Heavy Assault Rifle Launcher Grenade Launcher Impact Weapon Maul Build | -11 -10 -10 ------- Run | Yrd Mat Sub Slots Evolved 1 | . 1 . Power . | . . . Propulsion . | . . . Utility 1 | . 1 . Weapon . | . . . Parts Attached 30 | 8 8 14 Power 4 | 1 1 2 Engine 4 | 1 1 2 Core . | . . . Reactor . | . . . Propulsion 6 | 2 2 2 Treads . | . . . Leg 6 | 2 2 2 Wheel . | . . . Hover . | . . . Flight . | . . . Utility 9 | 2 3 4 Device 3 | . . 3 Storage 3 | 1 2 . Processor 1 | . 1 . Hackware . | . . . Protection 2 | 1 . 1 Artifact . | . . . Weapon 11 | 3 2 6 Energy Gun 1 | . . 1 Energy Cannon . | . . . Ballistic Gun 8 | 3 2 3 Ballistic Cannon . | . . . Launcher 1 | . . 1 Special Weapon . | . . . Impact Weapon 1 | . . 1 Slashing Weapon . | . . . Piercing Weapon . | . . . Special Melee Weapon . | . . . Unidentified Prototypes 1 | . . 1 Parts Lost 7 | . . 7 Power 1 | . . 1 Propulsion 1 | . . 1 Utility 2 | . . 2 Weapon 3 | . . 3 Highest Loss Streak 3 | . . 3 To Critical Strikes . | . . . Average Backups 16 | 1 13 19 Power 2 | . 1 3 Propulsion 2 | . 1 2 Utility 6 | . 5 7 Weapon 5 | . 4 5 Tool/Special . | . . . Unused Backups 13 | . 2 11 Power 2 | . . 2 Propulsion 2 | . . 2 Utility 7 | . 1 6 Weapon 2 | . 1 1 Tool/Special . | . . . Average Slot Usage (%) 97 | . 100 96 Engine 11 | . 12 10 Leg 23 | . 25 22 Device 6 | . . 11 Storage 11 | . 12 11 Processor 11 | . 12 11 Protection 6 | . 12 2 Ballistic Gun 18 | . 25 13 Impact Weapon 4 | . . 8 Peak Build Rating 35 | 7 12 35 Average Rating 14 | 5 10 18 On Entrance 6 | . 7 12 Naked Turns . | . . . Heaviest Build 54 | 20 52 54 Greatest Support 55 | 20 20 55 Greatest Overweight (x) 5 | . 5 4 Average Overweight (x) 1 | . 1 1 Largest Inventory Capacity 20 | 10 20 20 Average Capacity 19 | 7 19 20 Most Carried 20 | 4 20 20 Average Carried 16 | 1 14 19 Final Capacity 20 | 10 20 20 Final Carried 20 | 4 20 19 Class Distribution -------------------- 100% | Hacker-Mutant Dominant Class ---------------- Hacker-Mutant | -10/Materials Hacker-Mutant | -10/Subcaves Resources | -11 -10 -10 ----------- Run | Yrd Mat Sub Matter Collected 1488 | 271 723 494 Remotely . | . . . Salvage Created 1578 | . 941 637 Parts 101 | . 50 51 Haulers Intercepted 2 | . 2 . Recyclers Shooed 1 | . 1 . Parts Field Recycled . | . . . Retrieved Matter . | . . . Parts Self-Destructed . | . . . Prevented . | . . . Kills | -11 -10 -10 ------- Run | Yrd Mat Sub Combat Hostiles Destroyed 35 | . 16 19 Guns 25 | . 16 9 AOE 10 | . . 10 Classes Destroyed 8 | . 7 1 Worker 2 | . 2 . Builder 1 | . 1 . Hauler 2 | . 2 . Recycler 2 | . 2 . Watcher 3 | . 3 . Swarmer 4 | . 4 . Grunt 12 | . 12 . Subdweller 19 | . . 19 Best Kill Streak 7 | . 5 7 Combat Bots Only 7 | . 5 7 Max Kills in Single Turn 2 | . 2 2 Gunslinging . | . . . Exploded 2 | . . 2 Melee . | . . . Uniques/NPCs Destroyed . | . . . Combat | -11 -10 -10 -------- Run | Yrd Mat Sub Hostile Shots Fired 147 | . 79 68 Missed 41 | . 17 24 Hits 106 | . 62 44 Projectile 106 | . 62 44 AOE 2 | . . 2 Critical Strikes 2 | . . 2 Actively Blocked 1 | . . 1 Damage Taken 1369 | . 415 954 Core 258 | . 36 222 Absorbed by Shields . | . . . Redirected to Shielding 65 | . 33 32 Ignored by Resistances 787 | . 269 518 Core Remaining (%) 100 | 100 . . Volleys Fired 98 | . 54 44 Largest 2 | . 2 2 Hottest 78 | . 46 78 Shots Fired 189 | . 108 81 Gun 178 | . 108 70 Cannon . | . . . Launcher 11 | . . 11 Special . | . . . Kinetic 165 | . 108 57 Thermal . | . . . Explosive 11 | . . 11 Electromagnetic 13 | . . 13 Robot Hit Streak 38 | . 36 38 Robot Miss Streak 3 | . 3 1 Penetration Max . | . . . Secondary Targets 6 | . 4 2 Max Gunslinging Chain 1 | . 1 1 Shots Hit Robots 155 | . 87 68 Core Hits 84 | . 38 46 Critical Kills . | . . . Critical Parts Destroyed 1 | . 1 . Critical Strikes 1 | . 1 . Destroy 1 | . 1 . Melee Attacks 15 | . . 15 Impact 15 | . . 15 Slashing . | . . . Piercing . | . . . Sneak Attacks . | . . . Combat Hostiles . | . . . Follow-up Attacks . | . . . Damage Inflicted 3517 | . 1174 2343 Guns 1977 | . 1174 803 Cannons . | . . . Explosions 1540 | . . 1540 Melee . | . . . Ramming . | . . . Kinetic 1763 | . 1174 589 Thermal 179 | . . 179 Explosive 1361 | . . 1361 Electromagnetic 214 | . . 214 Impact . | . . . Slashing . | . . . Piercing . | . . . Highest Corruption 1 | . 1 1 Average Corruption 1 | . 1 1 Corruption Purged . | . . . Corruption Blocked . | . . . Effects 17 | . 2 15 Message Errors 4 | . . 4 Matter Fused 5 | . 2 3 Heat Flow Errors 4 | . . 4 Energy Discharges 1 | . . 1 Data Loss (major) 3 | . . 3 Overload Shots . | . . . Overflow Damage 9 | . . 9 Projectiles . | . . . Explosions 9 | . . 9 Melee . | . . . Knockbacks . | . . . Impact . | . . . Kinetic . | . . . Secondary . | . . . Self-Inflicted Damage 195 | . . 195 Shots 11 | . . 11 Rammed . | . . . Targets Rammed . | . . . Kicked . | . . . Crushed . | . . . Highest Temperature 209 | . 11 209 Average Temperature 28 | . 5 44 Received Heat Transfer 567 | . 351 216 Siege Activations . | . . . Martial Activations . | . . . Shielding Activations . | . . . Robots Disrupted . | . . . Combat Hostiles . | . . . Robots Corrupted . | . . . Combat Hostiles . | . . . Parts Fried . | . . . Impact Corruptions . | . . . Robots Melted . | . . . Combat Hostiles . | . . . Parts Melted . | . . . Heat Transferred 50 | . . 50 Parts Sabotaged . | . . . Parts Stolen . | . . . Parts Stripped . | . . . Power Chain Reactions 1 | . . 1 Alert | -11 -10 -10 ------- Run | Yrd Mat Sub Maximum Alert Level . | . . . Low Security (%) 100 | 100 100 . Level 1 . | . . . Level 2 . | . . . Level 3 . | . . . Level 4 . | . . . Level 5 . | . . . High Security . | . . . Max Security . | . . . Peak Influence 125 | . 125 . Initial . | . . . Average 11 | . 12 . Influence Increases 557 | . 557 . Destroy 0b10 Robot/C 320 | . 320 . Destroy 0b10 Robot/NC 50 | . 50 . Destroy Leader 90 | . 90 . Trap Triggered on 0b10 30 | . 30 . Successful Hack 51 | . 51 . Destroy Structure 1 | . 1 . Lose Combat Pursuer 15 | . 15 . Influence Decreases 557 | . 557 . Time Decay 557 | . 557 . Squads Dispatched 5 | . 5 . Investigation 5 | . 5 . Extermination . | . . . Reinforcement . | . . . Assault . | . . . Garrison . | . . . Intercept . | . . . Searches Triggered . | . . . Construction Impeded . | . . . Haulers Reinforced . | . . . Active Scanning Responses . | . . . Cargo Convoy Interrupts . | . . . Stealth | -11 -10 -10 --------- Run | Yrd Mat Sub Distress Signals . | . . . Communications Jammed . | . . . Distress Signals . | . . . Times Spotted 47 | . 21 26 Peak Tracking Total 8 | . 5 8 Tactical Retreats 1 | . 1 . Traps | -11 -10 -10 ------- Run | Yrd Mat Sub Traps Triggered 3 | . 1 2 Indirectly . | . . . Trap Hack Attempts . | . . . Triggered . | . . . Disarmed . | . . . Reprogrammed 15 | . 15 . Reused 3 | . 3 . Traps Extracted . | . . . Installed . | . . . Triggered 3 | . 3 . Machines | -11 -10 -10 ---------- Run | Yrd Mat Sub Machines Disabled . | . . . Max in Single Turn . | . . . Machines Repaired . | . . . Machines Dismantled . | . . . Machines Sabotaged . | . . . Overloaded Fab Kills . | . . . Hacking | -11 -10 -10 --------- Run | Yrd Mat Sub Machines Accessed 9 | . 8 1 Terminals 8 | . 8 . Fabricators . | . . . Repair Stations . | . . . Recycling Units . | . . . Scanalyzers . | . . . Garrison Access . | . . . Total Hacks 37 | . 33 4 Successful 29 | . 25 4 Failed 8 | . 8 . Catastrophic . | . . . Database Lockouts . | . . . Manual . | . . . Terminals 33 | . 33 . Fabricators . | . . . Repair Stations . | . . . Recycling Units . | . . . Scanalyzers . | . . . Garrison Access . | . . . Terminal Hacks 29 | . 25 4 Record 8 | . 4 4 Prototype ID Bank 1 | . 1 . Terminal Index 1 | . 1 . Scanalyzer Index 1 | . 1 . Locate Traps 5 | . 5 . Reprogram Traps 3 | . 3 . Dispatch Records 1 | . 1 . Maintenance Status 2 | . 2 . Transport Status 1 | . 1 . Reinforcement Status 1 | . 1 . Recall Investigation 1 | . 1 . Registered Components 1 | . 1 . Zone Layout 3 | . 3 . Fabricator Hacks . | . . . Repair Station Hacks . | . . . Recycling Unit Hacks . | . . . Scanalyzer . | . . . Garrison Access Hacks . | . . . Unauthorized Hacks . | . . . Terminals . | . . . Fabricators . | . . . Repair Stations . | . . . Recycling Units . | . . . Scanalyzers . | . . . Garrison Access . | . . . Data Cores Recovered . | . . . Used . | . . . Hacking Detections 8 | . 8 . Full Trace Events 8 | . 8 . Feedback Events . | . . . Feedback Blocked . | . . . Robot Schematics Acquired . | . . . Robots Built . | . . . Authchips . | . . . Time . | . . . Total Robot Build Rating . | . . . Part Schematics Acquired . | . . . Parts Built . | . . . Authchips . | . . . Time . | . . . Total Part Build Rating . | . . . Parts Repaired . | . . . Time . | . . . Parts Recycled . | . . . Recycled Matter . | . . . Retrieved Matter . | . . . Retrieved Components . | . . . Parts Scanalyzed . | . . . Part Schematics Acquired . | . . . Parts Damaged . | . . . Bothacking | -11 -10 -10 ------------ Run | Yrd Mat Sub Used RIF Installer . | . . . Robots Hacked . | . . . Non-combat . | . . . Combat . | . . . Robot Hacks Applied . | . . . Relay Couplers Released . | . . . Fabnet Peak Effective % . | . . . Robots Rewired . | . . . Allies Hacked . | . . . Hacks Repelled . | . . . Allies | -11 -10 -10 -------- Run | Yrd Mat Sub Total Allies . | . . . Largest Group . | . . . Highest-Rated Group . | . . . Highest-Rated Ally . | . . . Total Orders . | . . . Ally Attacks . | . . . Total Damage . | . . . Kills . | . . . Allies Corrupted . | . . . Allies Melted . | . . . Intel | -11 -10 -10 ------- Run | Yrd Mat Sub Active Infowar (turns) 432 | . . 432 Optics 388 | . . 388 Sensors 431 | . . 431 Robot Analysis Total . | . . . Derelict Logs Recovered 3 | . . 3 Drone Launches . | . . . Drone Recoveries . | . . . Exploration | -11 -10 -10 ------------- Run | Yrd Mat Sub Turns Passed 4982 | 74 2109 2799 Spaces Moved 1917 | 59 717 1141 Core 16 | 16 . . Treads . | . . . Legs 1901 | 43 717 1141 Wheels . | . . . Hover . | . . . Flight . | . . . Fastest Speed 50 | 50 120 130 Average Speed 232 | 101 252 227 Slowest Speed 470 | 120 470 400 Overloaded Moves . | . . . Propulsion Burnouts . | . . . Robots Hopped . | . . . Potential Cave-ins . | . . . Cave-ins Triggered . | . . . Exploration Rate (%) 56 | 4 98 68 Regions Visited 2 Branch Regions 1 Pre-discovered Areas 2 | . . 2 Known Exits Taken 2 | 1 1 . Unknown Exits Taken . | . . . Scrap Searched 7 | . . 7 Spaces Dug . | . . . Terrain Destroyed 40 | . . 40 Melee . | . . . Projectile . | . . . AOE 40 | . . 40 Terrain Rammed . | . . . Walls Destroyed . | . . . Machines Disabled . | . . . Actions | -11 -10 -10 --------- Run | Yrd Mat Sub Total 2217 | 70 912 1235 Wait 112 | . 112 . Move 1915 | 58 716 1141 Hop . | . . . Pick Up 27 | 3 16 8 Fast Attach 10 | 8 . 2 Attach 11 | . 1 10 Detach 3 | 1 . 2 Swap 15 | . 7 8 Drop 11 | . 6 5 Fire 98 | . 54 44 Melee 15 | . . 15 Ram . | . . . Kick . | . . . Crush . | . . . Escape Stasis . | . . . Rewire . | . . . Trap . | . . . Miscellaneous . | . . . Route ------- -11/Scrapyard -10/Materials (discovered 6 exits: *Mat x3 / *Min x2 / *Sub) -10/Subcaves (discovered 1 exit: *Mat) History --------- Turn | Location | Event 2 | -11/Scrapyard | Met Revision 17 5 | -11/Scrapyard | Identified exit to Materials 5 | -11/Scrapyard | Discovered exit to Materials (range 16) 75 | -11/Scrapyard | Entered Materials 75 | -10/Materials | Evolved 1 slot: Utility x1 144 | -10/Materials | Identified exit to Mines 144 | -10/Materials | Discovered exit to Mines (range 17) 300 | -10/Materials | Build established: Hacker-Mutant 498 | -10/Materials | Discovered exit to Mines (range 5) 604 | -10/Materials | Identified exit to Materials 604 | -10/Materials | Discovered exit to Materials (range 10) 807 | -10/Materials | Identified exit to Subcaves 807 | -10/Materials | Discovered exit to Subcaves (range 15) 1479 | -10/Materials | Discovered exit to Materials (range 3) 1873 | -10/Materials | Discovered exit to Materials (range 16) 2184 | -10/Materials | Entered Subcaves 2203 | -10/Subcaves | Learned location of 1 exit from Materials 2355 | -10/Subcaves | Ambushed by swarm of Subdwellers 2355 | -10/Subcaves | Ambushed by Subdwellers from Twisted Machinery 2355 | -10/Subcaves | Ambushed by Subdwellers from Twisted Machinery 2355 | -10/Subcaves | Ambushed by Subdwellers from Twisted Machinery 2363 | -10/Subcaves | Ambushed by Subdwellers from Twisted Machinery 2399 | -10/Subcaves | Destroyed 7 combat bots 2654 | -10/Subcaves | Learned 2 Materials zone layouts 2769 | -10/Subcaves | Core integrity fell below 50% 2844 | -10/Subcaves | Shifting Twisted Machinery released Sub. Laser 3314 | -10/Subcaves | Identified exit to Materials 3314 | -10/Subcaves | Discovered exit to Materials (range 15) 3346 | -10/Subcaves | Shifting Twisted Machinery released Barrage Gun 3364 | -10/Subcaves | Learned location of Zion (-7) 3364 | -10/Subcaves | Met a Zionite searching for "candidates" 3382 | -10/Subcaves | Learned Materials garrison access intel 3440 | -10/Subcaves | Shifting Twisted Machinery released Riot Gun 3539 | -10/Subcaves | Visited Clippyterm 3547 | -10/Subcaves | Learned location of Deep Caves (-7) 3547 | -10/Subcaves | Learned Research machine intel 4143 | -10/Subcaves | A swath of the cavern ceiling suddenly collapsed 4484 | -10/Subcaves | A Subdweller sparked back to life 4484 | -10/Subcaves | A Subdweller sparked back to life 4504 | -10/Subcaves | Core integrity fell below 20% 4541 | -10/Subcaves | Lost 3 parts (1n1u1w) 4549 | -10/Subcaves | Found Prototype Leg 4549 | -10/Subcaves | Identified Cargo Legs 4550 | -10/Subcaves | Attached Cargo Legs, gained temporary slots: Utility x2 4983 | -10/Subcaves | Destroyed by 5A-459(R) with Subdweller Laser Last Messages --------------- 04922_ Acquired 9 matter. 04939_ Sub. Optics shoots sparks and powers down. 04946_ Searching scrap... 04946_ Found Riot Gun. 04946_ Found 48 Matter. 04947_ Acquired 1 matter. 04948_ Acquired Riot Gun. 04949_ Searching scrap... 04949_ Found Sub. Machine Gun. 04949_ Found Flamer. 04949_ Found 56 Matter. 04954_ Dropped Broken Sub. Optics. 04955_ Temporary Utility slot lost. 04959_ 2J-FXZ(R) destroyed. 04964_ 6K-D8U(R) affixes Scrap Shield Fragment to Scrap Shield. 04965_ 6K-D8U(R) destroyed. 04968_ Acquired 12 matter. 04969_ Acquired 4 matter. 04982_ 5A-459(R): "SUBHATE!" Map ----- +----------------------------------------------------+ | | | | | | | | | | | | | | | | | ?????????????????????????????????????????????????? | | ?????????????????????????????????????????????????? | | ?????????????????????????????????????????????????? | | ?????????????????????????????????????????????????? | | ?????????????????????????????????????????????????? | | ?????????????????????????????????????????????????? | | ?????????????????????????????????????????????????? | | ?????????????????????????????????????????????????? | | ?????????????????????????????????????????????????? | | ?????????????????????????????????????????????????? | | ?????????????????????????????????????????????????? | | ?????????????????????????????????????????????????? | | ?????????????????????????????????????????????????? | | ?????????????????????????????????????????????????? | | ?????????????????????????????????????????????????? | | ????????????????????############?????????????????? | | ????????????????##### # ##*#??????????????? | | ????????????????# @ %= R ????????? | | ????????????????# ## ## ##=#??????????????? | | ????????????????#"""# # %#?????????????????????? | | ????????????????#"??# *#[ ##????????????????????? | | ????????????????????##!%%# =#????????????????????? | | ?????????????????????# !&%%*##???##??????????????? | | ?????????????????????# &= = #### #??????????????? | | ?????????????????????# ## !#|%#%#???????????????? | | ?????????????????????##?# ### [##???????????????? | | ????????????????????????# #?## ##???????????????? | | ??????????????????????? #??# #???????????????? | | ?????????????????????? ## #??# ##???????????????? | | ????????????????????? ??####??# ##???????????????? | | ???????????????????? ?????????## ##??????????????? | | ??????????????????? ???????????## #??????????????? | | ??????????????????#????????????## #??????????????? | | ???????????????????????????##?## # #?????????????? | | ???????????????????????????# ## ####?????????????? | | ???????????????????????????# ##????????????????? | | ?????????????????????? ## #?????????????????? | | ???????????????? ?????# ##????????????????? | | ???????????????#####?????????# #????????????????? | | ?????????????????????????????# ##????????????????? | | ?????????????????????????????## ##???????????????? | | ??????????????????????????????## ###?????????????? | +----------------------------------------------------+ Best States ------------- Heat Dissipation 47 Energy Generation 15 Energy Capacity 250 Matter Stores 300 Matter Capacity 300 Sight Range 21 Robot Scan Range 14 Terrain Scan Density 10 Resistance: KI 35 Resistance: TH 35 Resistance: EX 35 Resistance: EM 35 Resistance: I 35 Resistance: S 35 Resistance: P 35 Propulsion Shielding 33 Weapon Shielding 33 Evasion (%) 55 Targeting Accuracy 5 Offensive Hacking 20 Item Schematics ----------------- None Robot Schematics ------------------ None Fabricated ------------ Nothing Repaired ---------- Nothing Alien Tech Used ----------------- None Achievements -------------- None Challenges ------------ None Game ------ Seed CouplerBurstArchive Manual? 0 Play Time 00:30:59 Cumulative 2096.2 hours Start 2025.07.02 @ 18:15:36 End 2025.07.02 @ 18:42:57 Sessions 1 Manual Loads 0 Difficulty Explorer Special Mode None Game No. 1039 Rogue 62 Adventurer 0 Explorer 977 Win Type - Total 11 Types 11/0/0/0/0/0/0/0/0/0 Lore% 60 Gallery% 72 Achievement% 64 Wizard Run 0 Options --------- Layout 1 ASCII 0 Keyboard 0 Movement Numpad Keybinds 0 Fullscreen 1 Font 48/Smallcaps Map View 55x35 Zoom Use 0% Tactical HUD 1 Map Filters NONE Filters NONE Steam 1 RUN: 083e6a43-9a18-41c8-8379-fa622c2606ae